fUSD/lending_fUSD_20240804
["ID","MTS","AMOUNT","RATE_DAILY","PERIOD"]
[334174163,1722807673811,225.66,0.00023168,120]
[334174164,1722807673971,150.5,0.00023168,120]
[334174165,1722807674323,150.71,0.00023158,120]
[334174166,1722807686954,11535.4738415,0.00027,120]
[334174168,1722807714208,4651.0724239,0.00027,120]
[334174172,1722807949714,392.87,0.00025489,120]
[334174189,1722808231872,-283.8100001,0.00013435,2]
[334174190,1722808231883,-2038.29,0.00013435,2]
[334174191,1722808231911,-540.9028489,0.00013435,2]
[334174192,1722808231920,-492.18840471,0.00013502,2]
[334174193,1722808231950,-856.26166783,0.00013502,2]
[334174194,1722808231992,-2617.13682746,0.00013502,2]
[334174195,1722808232002,-150.0,0.00013671,2]
[334174196,1722808232012,-283.0,0.00013698,2]
[334174197,1722808232022,-150.0,0.00013698,2]
[334174198,1722808232031,-300.0,0.00013698,2]
[334174199,1722808232041,-800.0,0.00013699,2]
[334174200,1722808232051,-800.0,0.00013699,2]
[334174201,1722808232061,-76.45771856,0.00013699,2]
[334174202,1722808232084,-723.54228144,0.00013699,2]
[334174203,1722808232093,-54.2843673,0.00013699,2]
[334174204,1722808232109,-428.856,0.00013699,2]
[334174205,1722808232121,-316.8596327,0.00013699,2]
[334174206,1722808232130,-359.43287226,0.00013699,2]
[334174207,1722808232144,-307.36198922,0.00013699,2]
[334174208,1722808232160,-133.20513852,0.00013699,2]
[334174209,1722808232170,-656.9539511,0.00013699,2]
[334174210,1722808232184,-143.0460489,0.00013699,2]
[334174211,1722808232193,-786.2589511,0.00013699,2]
[334174212,1722808232212,-13.7410489,0.00013699,2]
[334174213,1722808232221,-800.0,0.00013699,2]
[334174214,1722808232231,-800.0,0.00013699,2]
[334174215,1722808232240,-800.0,0.00013699,2]
[334174216,1722808232249,-800.0,0.00013699,2]
[334174217,1722808232259,-36624.99260448,0.00013699,2]
[334174218,1722808232269,-800.0,0.00013699,2]
[334174219,1722808232278,-163.2,0.00013973,2]
[334174220,1722808232287,-210.0,0.00014821,2]
[334174221,1722808232296,-2500.85158559,0.00017259,2]
[334174222,1722808232305,-499.99,0.00017808,2]
[334174223,1722808232315,-1884.26,0.00017808,2]
[334174224,1722808232324,-2607.22028548,0.00018081,2]
[334174225,1722808232333,-549.15,0.00018358,2]
[334174226,1722808232347,-4103.05217891,0.00018499,2]
[334174227,1722808232357,-1296.95622263,0.00018599,2]
[334174228,1722808232366,-155.0,0.00019177,2]
[334174229,1722808232375,-155.0,0.00019387,2]
[334174230,1722808232385,-155.0,0.00019398,2]
[334174231,1722808232395,-155.0,0.00019398,2]
[334174232,1722808232404,-2354.28,0.00019452,2]
[334174233,1722808232414,-1000.0,0.00019991,2]
[334174234,1722808232424,-496.89,0.00020182,2]
[334174235,1722808232434,-177.73,0.00020255,2]
[334174236,1722808232444,-250.0,0.00020255,2]
[334174237,1722808232453,-425.28,0.00020301,2]
[334174238,1722808232462,-1501.38,0.00020369,2]
[334174239,1722808232472,-392.87,0.00020391,2]
[334174240,1722808232481,-3755.56,0.00020399,2]
[334174241,1722808232490,-2000.0,0.0002042,2]
[334174242,1722808232499,-549.15,0.00020622,2]
[334174243,1722808232509,-250.0,0.00020719,2]
[334174244,1722808232518,-500.0,0.00020759,2]
[334174245,1722808232528,-158.282,0.00020762,2]
[334174246,1722808232537,-3456.54,0.00020869,2]
[334174247,1722808232547,-176.0,0.00020873,2]
[334174248,1722808232556,-400.0,0.00020912,2]
[334174249,1722808232566,-169.36,0.00020936,2]
[334174250,1722808232575,-179.02,0.000211,2]
[334174251,1722808232586,-356.19,0.00022548,2]
[334174252,1722808232595,-356.19,0.00022548,2]
[334174253,1722808232604,-356.19,0.00022548,2]
[334174254,1722808232614,-355.45,0.00022548,2]
[334174255,1722808232623,-300.0,0.00022548,2]
[334174256,1722808232632,-150.0,0.00022548,2]
[334174257,1722808232642,-425.28,0.00022839,2]
[334174258,1722808232651,-549.15,0.00022886,2]
[334174259,1722808232661,-2373.9779,0.00022903,2]
[334174260,1722808232670,-412.606,0.00022903,2]
[334174261,1722808232687,-230.7706,0.00022913,2]
[334174262,1722808232696,-315.3687,0.00022913,2]
[334174263,1722808232706,-700.8393,0.00022913,2]
[334174264,1722808232715,-7500.0,0.00022913,2]
[334174265,1722808232725,-392.87,0.0002294,2]
[334174266,1722808232734,-500.0,0.00022992,2]
[334174267,1722808232743,-8179.63984464,0.00022993,3]
[334174268,1722808232752,-143.27556979,0.00022993,3]
[334174269,1722808232764,-37.11443021,0.00022993,3]
[334174270,1722808232774,-541.2,0.00022993,3]
[334174271,1722808232783,-182.03519031,0.00022994,2]
[334174272,1722808232793,-1543.4654,0.00022995,2]
[334174273,1722808232802,-2144.55865843,0.00023003,3]
[334174277,1722808237834,-946.99650651,0.00020999,2]
[334174278,1722808237845,-11147.35608907,0.00023003,3]
[334174279,1722808237855,-309.44740441,0.00023003,3]
[334174280,1722808237866,-1507.57772365,0.00023003,3]
[334174281,1722808237877,-439.93766087,0.00023003,3]
[334174282,1722808237889,-703.20536157,0.00023003,3]
[334174283,1722808237913,-39837.54097811,0.00023003,3]
[334174284,1722808237925,-450.0,0.00023003,3]
[334174285,1722808237940,-685.35780699,0.00023003,3]
[334174286,1722808237951,-1517.94477704,0.00023003,3]
[334174287,1722808237962,-30687.70725279,0.00023003,3]
[334174288,1722808237975,-20046.88647575,0.00023003,3]
[334174289,1722808237994,-50448.83835652,0.00023003,3]
[334174290,1722808238014,-680.55060547,0.00023003,3]
[334174291,1722808238025,-6861.20783383,0.00023003,3]
[334174292,1722808238035,-154.77,0.00023003,2]
[334174293,1722808238044,-161.70901208,0.0002301,2]
[334174294,1722808238054,-515.75968086,0.00023013,9]
[334174295,1722808238063,-153.846153,0.00023013,9]
[334174296,1722808238072,-500.0,0.00023013,9]
[334174297,1722808238082,-500.0,0.00023013,9]
[334174298,1722808238092,-516.48,0.00023013,9]
[334174299,1722808238101,-522.15,0.00023013,9]
[334174300,1722808238111,-112.69591612,0.00023013,9]
[334174301,1722808238123,-387.30408388,0.00023013,9]
[334174302,1722808238132,-1024.38,0.00023013,9]
[334174303,1722808238142,-500.0,0.00023013,9]
[334174304,1722808238152,-500.0,0.00023013,9]
[334174305,1722808238161,-500.0,0.00023013,9]
[334174306,1722808238171,-500.0,0.00023013,2]
[334174307,1722808238181,-280.65591613,0.00023013,9]
[334174308,1722808238197,-219.34408387,0.00023013,9]
[334174309,1722808238206,-500.0,0.00023013,9]
[334174310,1722808238216,-427.67,0.00023013,9]
[334174331,1722808238474,-363.04,0.00023013,9]
[334174332,1722808238503,-500.0,0.00023013,9]
[334174333,1722808238513,-500.0,0.00023013,9]
[334174334,1722808238523,-500.0,0.00023013,9]
[334174335,1722808238533,-500.0,0.00023013,9]
[334174336,1722808238542,-354.0,0.00023013,9]
[334174337,1722808238552,-500.0,0.00023013,9]
[334174338,1722808238561,-500.0,0.00023013,9]
[334174339,1722808238572,-500.0,0.00023013,9]
[334174340,1722808238581,-500.0,0.00023013,9]
[334174341,1722808238591,-536.8,0.00023013,9]
[334174342,1722808238601,-500.0,0.00023013,9]
[334174343,1722808238610,-649.37,0.00023013,9]
[334174344,1722808238620,-500.0,0.00023013,9]
[334174345,1722808238629,-501.89,0.00023013,9]
[334174346,1722808238639,-500.0,0.00023013,9]
[334174347,1722808238648,-500.0,0.00023013,9]
[334174348,1722808238658,-500.0,0.00023013,9]
[334174349,1722808238668,-500.0,0.00023013,9]
[334174350,1722808238677,-500.0,0.00023013,9]
[334174351,1722808238687,-500.0,0.00023013,9]
[334174352,1722808238697,-500.0,0.00023013,9]
[334174353,1722808238706,-500.0,0.00023013,9]
[334174354,1722808238716,-500.0,0.00023013,9]
[334174355,1722808238726,-955.76,0.00023013,9]
[334174356,1722808238736,-796.52,0.00023013,9]
[334174357,1722808238746,-500.0,0.00023013,9]
[334174358,1722808238755,-500.0,0.00023013,9]
[334174359,1722808238764,-723.02,0.00023013,9]
[334174360,1722808238773,-816.23,0.00023013,9]
[334174361,1722808238783,-155.12424631,0.00023013,9]
[334174362,1722808238793,-500.0,0.00023013,9]
[334174363,1722808238802,-500.0,0.00023013,9]
[334174364,1722808238812,-500.0,0.00023013,2]
[334174365,1722808238821,-500.0,0.00023013,9]
[334174366,1722808238831,-500.0,0.00023013,9]
[334174367,1722808238840,-500.0,0.00023013,9]
[334174368,1722808238850,-528.13,0.00023013,9]
[334174369,1722808238860,-500.0,0.00023013,9]
[334174370,1722808238869,-863.25,0.00023013,9]
[334174371,1722808238879,-539.87,0.00023013,9]
[334174372,1722808238888,-500.0,0.00023013,9]
[334174373,1722808238898,-500.0,0.00023013,9]
[334174374,1722808238908,-753.21,0.00023013,9]
[334174375,1722808238917,-500.0,0.00023013,9]
[334174376,1722808238926,-500.0,0.00023013,9]
[334174377,1722808238936,-500.0,0.00023013,9]
[334174378,1722808238946,-670.04,0.00023013,9]
[334174379,1722808238956,-500.0,0.00023013,9]
[334174380,1722808238966,-892.16,0.00023013,9]
[334174381,1722808238975,-852.26,0.00023013,9]
[334174382,1722808238985,-500.0,0.00023013,9]
[334174383,1722808238994,-500.0,0.00023013,9]
[334174384,1722808239004,-500.0,0.00023013,9]
[334174385,1722808239013,-500.0,0.00023013,9]
[334174386,1722808239023,-500.0,0.00023013,9]
[334174387,1722808239033,-500.0,0.00023013,9]
[334174388,1722808239042,-500.0,0.00023013,9]
[334174389,1722808239051,-500.0,0.00023013,9]
[334174390,1722808239067,-630.67,0.00023013,9]
[334174392,1722808239076,-500.0,0.00023013,9]
[334174394,1722808239086,-500.0,0.00023013,9]
[334174396,1722808239096,-699.28,0.00023013,9]
[334174398,1722808239105,-500.0,0.00023013,9]
[334174400,1722808239114,-500.0,0.00023013,9]
[334174401,1722808239123,-500.0,0.00023013,9]
[334174402,1722808239133,-500.0,0.00023013,9]
[334174403,1722808239142,-500.0,0.00023013,9]
[334174404,1722808239152,-500.0,0.00023013,9]
[334174405,1722808239162,-500.0,0.00023013,9]
[334174406,1722808239171,-500.0,0.00023013,9]
[334174407,1722808239181,-500.0,0.00023013,9]
[334174408,1722808239191,-500.0,0.00023013,9]
[334174409,1722808239201,-500.0,0.00023013,9]
[334174410,1722808239210,-572.97,0.00023013,9]
[334174411,1722808239220,-500.0,0.00023013,9]
[334174412,1722808239230,-500.0,0.00023013,9]
[334174413,1722808239239,-500.0,0.00023013,9]
[334174414,1722808239248,-500.0,0.00023013,9]
[334174415,1722808239258,-500.0,0.00023013,9]
[334174416,1722808239268,-500.0,0.00023013,9]
[334174417,1722808239277,-500.0,0.00023013,9]
[334174418,1722808239287,-500.0,0.00023013,9]
[334174419,1722808239296,-500.0,0.00023013,9]
[334174420,1722808239306,-500.0,0.00023013,9]
[334174421,1722808239315,-500.0,0.00023013,9]
[334174422,1722808239325,-915.28,0.00023013,9]
[334174423,1722808239338,-500.0,0.00023013,9]
[334174424,1722808239348,-500.0,0.00023013,9]
[334174425,1722808239357,-500.0,0.00023013,9]
[334174426,1722808239367,-500.0,0.00023013,9]
[334174427,1722808239376,-500.0,0.00023013,9]
[334174428,1722808239386,-500.0,0.00023013,9]
[334174429,1722808239396,-500.0,0.00023013,9]
[334174430,1722808239406,-747.31,0.00023013,9]
[334174431,1722808239417,-500.0,0.00023013,9]
[334174432,1722808239427,-500.0,0.00023013,9]
[334174433,1722808239437,-500.0,0.00023013,9]
[334174434,1722808239447,-500.0,0.00023013,9]
[334174435,1722808239456,-1157.75,0.00023013,9]
[334174436,1722808239466,-500.0,0.00023013,9]
[334174437,1722808239476,-500.0,0.00023013,9]
[334174438,1722808239485,-615.26,0.00023013,9]
[334174439,1722808239495,-257.98899847,0.00023013,9]
[334174440,1722808239504,-500.0,0.00023013,9]
[334174441,1722808239514,-500.0,0.00023013,9]
[334174442,1722808239524,-500.0,0.00023013,9]
[334174444,1722808239534,-500.0,0.00023013,9]
[334174445,1722808239544,-734.32,0.00023013,9]
[334174447,1722808239554,-811.6,0.00023013,9]
[334174449,1722808239564,-500.0,0.00023013,9]
[334174451,1722808239573,-129.88267135,0.00023013,9]
[334174454,1722808239594,-622.21983407,0.00023013,9]
[334174456,1722808239606,-240.19749458,0.00023013,9]
[334174458,1722808239615,-500.0,0.00023013,9]
[334174460,1722808239625,-786.76,0.00023013,9]
[334174462,1722808239634,-132.70559578,0.00023013,9]
[334174465,1722808239702,-367.29440422,0.00023013,9]
[334174466,1722808239712,-408.88862162,0.00023013,9]
[334174467,1722808239726,-91.11137838,0.00023013,9]
[334174468,1722808239736,-500.0,0.00023013,9]
[334174469,1722808239747,-212.95762162,0.00023013,9]
[334174470,1722808239758,-287.04237838,0.00023013,9]
[334174471,1722808239768,-288.90307125,0.00023013,9]
[334174472,1722808239781,-211.09692875,0.00023013,9]
[334174473,1722808239790,-50.76339048,0.00023013,9]
[334174474,1722808239802,-449.23660952,0.00023013,9]
[334174475,1722808239812,-423.46663444,0.00023013,9]
[334174476,1722808239825,-76.53336556,0.00023013,9]
[334174477,1722808239835,-205.76090606,0.00023013,9]
[334174478,1722808239892,-335.15909394,0.00023013,9]
[334174479,1722808239902,-500.0,0.00023013,2]
[334174480,1722808239912,-419.83654986,0.00023013,9]
[334174481,1722808239924,-134.38345014,0.00023013,9]
[334174482,1722808239935,-500.0,0.00023013,9]
[334174483,1722808239945,-500.0,0.00023013,9]
[334174484,1722808239956,-500.0,0.00023013,9]
[334174485,1722808239966,-500.0,0.00023013,9]
[334174486,1722808239976,-833.62,0.00023013,9]
[334174487,1722808239985,-500.0,0.00023013,9]
[334174488,1722808239995,-922.99,0.00023013,9]
[334174489,1722808240005,-500.0,0.00023013,9]
[334174490,1722808240015,-500.0,0.00023013,9]
[334174491,1722808240024,-500.0,0.00023013,9]
[334174492,1722808240034,-500.0,0.00023013,9]
[334174493,1722808240043,-500.0,0.00023013,9]
[334174494,1722808240052,-376.6,0.00023013,9]
[334174495,1722808240062,-500.0,0.00023013,9]
[334174496,1722808240072,-500.0,0.00023013,9]
[334174497,1722808240081,-500.0,0.00023013,9]
[334174498,1722808240091,-500.0,0.00023013,9]
[334174499,1722808240100,-500.0,0.00023013,9]
[334174500,1722808240110,-500.0,0.00023013,9]
[334174501,1722808240120,-500.0,0.00023013,9]
[334174502,1722808240130,-734.67,0.00023013,9]
[334174503,1722808240140,-258.14737273,0.00023013,9]
[334174504,1722808240149,-500.0,0.00023013,9]
[334174505,1722808240159,-500.0,0.00023013,9]
[334174506,1722808240170,-500.0,0.00023013,9]
[334174507,1722808240180,-500.0,0.00023013,9]
[334174508,1722808240189,-500.0,0.00023013,9]
[334174509,1722808240199,-500.0,0.00023013,9]
[334174510,1722808240208,-500.0,0.00023013,9]
[334174511,1722808240218,-500.0,0.00023013,9]
[334174512,1722808240227,-500.0,0.00023013,9]
[334174513,1722808240237,-500.0,0.00023013,9]
[334174514,1722808240246,-500.0,0.00023013,9]
[334174515,1722808240256,-737.98,0.00023013,9]
[334174516,1722808240265,-805.33,0.00023013,9]
[334174517,1722808240275,-500.0,0.00023013,9]
[334174518,1722808240284,-500.0,0.00023013,9]
[334174519,1722808240294,-500.0,0.00023013,9]
[334174520,1722808240304,-500.0,0.00023013,9]
[334174521,1722808240314,-500.0,0.00023013,9]
[334174522,1722808240323,-500.0,0.00023013,9]
[334174523,1722808240332,-500.0,0.00023013,9]
[334174524,1722808240345,-901.04,0.00023013,9]
[334174525,1722808240354,-500.0,0.00023013,9]
[334174526,1722808240364,-500.0,0.00023013,9]
[334174527,1722808240374,-500.0,0.00023013,9]
[334174528,1722808240384,-500.0,0.00023013,9]
[334174529,1722808240394,-500.0,0.00023013,9]
[334174530,1722808240404,-536.63,0.00023013,9]
[334174531,1722808240415,-500.0,0.00023013,9]
[334174532,1722808240425,-500.0,0.00023013,9]
[334174533,1722808240436,-762.35,0.00023013,9]
[334174534,1722808240452,-638.97,0.00023013,9]
[334174535,1722808240462,-500.0,0.00023013,9]
[334174536,1722808240472,-500.0,0.00023013,9]
[334174537,1722808240481,-500.0,0.00023013,9]
[334174538,1722808240491,-53.76946137,0.00023013,9]
[334174539,1722808240506,-1095.38053863,0.00023013,9]
[334174540,1722808240515,-500.0,0.00023013,9]
[334174541,1722808240525,-1004.25,0.00023013,9]
[334174542,1722808240534,-500.0,0.00023013,9]
[334174543,1722808240544,-500.0,0.00023013,9]
[334174544,1722808240554,-1207.0,0.00023013,9]
[334174545,1722808240563,-969.91,0.00023013,9]
[334174546,1722808240573,-879.49,0.00023013,9]
[334174547,1722808240582,-500.0,0.00023013,9]
[334174548,1722808240593,-509.7,0.00023013,9]
[334174549,1722808240603,-500.0,0.00023013,9]
[334174550,1722808240611,-795.44,0.00023013,9]
[334174552,1722808240621,-680.28,0.00023013,9]
[334174554,1722808240630,-500.0,0.00023013,9]
[334174556,1722808240641,-500.0,0.00023013,9]
[334174558,1722808240650,-500.0,0.00023013,9]
[334174560,1722808240659,-500.0,0.00023013,9]
[334174562,1722808240669,-500.0,0.00023013,9]
[334174564,1722808240680,-500.0,0.00023013,9]
[334174566,1722808240691,-943.13,0.00023013,7]
[334174568,1722808240700,-1233.8,0.00023013,9]
[334174570,1722808240710,-500.0,0.00023013,9]
[334174572,1722808240719,-500.0,0.00023013,9]
[334174574,1722808240728,-500.0,0.00023013,9]
[334174576,1722808240738,-500.0,0.00023013,9]
[334174578,1722808240747,-500.0,0.00023013,9]
[334174580,1722808240756,-500.0,0.00023013,9]
[334174581,1722808240766,-500.0,0.00023013,9]
[334174583,1722808240775,-500.0,0.00023013,9]
[334174585,1722808240784,-307.51232862,0.00023013,9]
[334174587,1722808240798,-795.30767138,0.00023013,9]
[334174589,1722808240808,-1054.72,0.00023013,9]
[334174591,1722808240817,-500.0,0.00023013,9]
[334174593,1722808240827,-500.0,0.00023013,9]
[334174595,1722808240836,-500.0,0.00023013,9]
[334174597,1722808240847,-500.0,0.00023013,9]
[334174599,1722808240856,-500.0,0.00023013,9]
[334174601,1722808240866,-500.0,0.00023013,9]
[334174602,1722808240875,-661.66,0.00023013,9]
[334174604,1722808240885,-500.0,0.00023013,9]
[334174606,1722808240894,-500.0,0.00023013,9]
[334174608,1722808240903,-500.0,0.00023013,9]
[334174610,1722808240913,-1078.4,0.00023013,9]
[334174612,1722808240923,-500.0,0.00023013,9]
[334174613,1722808240932,-318.74106108,0.00023013,9]
[334174615,1722808240942,-500.0,0.00023013,9]
[334174617,1722808240951,-500.0,0.00023013,9]
[334174619,1722808240961,-590.8,0.00023013,9]
[334174621,1722808240971,-500.0,0.00023013,9]
[334174623,1722808240980,-1085.2,0.00023013,9]
[334174625,1722808240990,-500.0,0.00023013,9]
[334174627,1722808240999,-500.0,0.00023013,9]
[334174629,1722808241008,-500.0,0.00023013,9]
[334174631,1722808241018,-1089.83,0.00023013,9]
[334174633,1722808241027,-1149.71,0.00023013,9]
[334174635,1722808241036,-790.8,0.00023013,9]
[334174637,1722808241046,-500.0,0.00023013,9]
[334174639,1722808241056,-1194.14,0.00023013,9]
[334174641,1722808241066,-500.0,0.00023013,9]
[334174643,1722808241075,-571.88,0.00023013,9]
[334174645,1722808241085,-500.0,0.00023013,9]
[334174647,1722808241094,-500.0,0.00023013,9]
[334174649,1722808241104,-500.0,0.00023013,9]
[334174651,1722808241114,-500.0,0.00023013,9]
[334174653,1722808241123,-500.0,0.00023013,9]
[334174655,1722808241132,-500.0,0.00023013,9]
[334174657,1722808241142,-500.0,0.00023013,9]
[334174659,1722808241152,-500.0,0.00023013,9]
[334174661,1722808241161,-500.0,0.00023013,9]
[334174663,1722808241170,-500.0,0.00023013,9]
[334174664,1722808241179,-500.0,0.00023013,9]
[334174666,1722808241189,-687.5,0.00023013,9]
[334174668,1722808241198,-843.66,0.00023013,9]
[334174670,1722808241208,-800.39,0.00023013,9]
[334174672,1722808241217,-500.0,0.00023013,9]
[334174674,1722808241226,-674.86,0.00023013,9]
[334174676,1722808241235,-500.0,0.00023013,9]
[334174678,1722808241244,-500.0,0.00023013,9]
[334174680,1722808241254,-864.8,0.00023013,9]
[334174682,1722808241263,-500.0,0.00023013,9]
[334174684,1722808241272,-500.0,0.00023013,9]
[334174685,1722808241281,-1751.75,0.00023013,9]
[334174687,1722808241292,-500.0,0.00023013,9]
[334174689,1722808241301,-500.0,0.00023013,9]
[334174691,1722808241310,-744.4,0.00023013,9]
[334174693,1722808241319,-500.0,0.00023013,9]
[334174695,1722808241329,-837.81,0.00023013,9]
[334174697,1722808241340,-894.43,0.00023013,9]
[334174699,1722808241352,-500.0,0.00023013,9]
[334174700,1722808241362,-500.0,0.00023013,9]
[334174702,1722808241371,-500.0,0.00023013,9]
[334174704,1722808241381,-500.0,0.00023013,9]
[334174706,1722808241390,-538.53,0.00023013,9]
[334174707,1722808241398,-500.0,0.00023013,9]
[334174709,1722808241408,-500.0,0.00023013,9]
[334174711,1722808241419,-500.0,0.00023013,9]
[334174713,1722808241428,-500.0,0.00023013,9]
[334174715,1722808241438,-500.0,0.00023013,9]
[334174717,1722808241448,-679.08,0.00023013,9]
[334174719,1722808241457,-500.0,0.00023013,9]
[334174721,1722808241467,-500.0,0.00023013,9]
[334174723,1722808241476,-500.0,0.00023013,9]
[334174725,1722808241484,-500.0,0.00023013,9]
[334174727,1722808241494,-1175.67,0.00023013,9]
[334174729,1722808241503,-938.15,0.00023013,9]
[334174731,1722808241512,-500.0,0.00023013,9]
[334174733,1722808241522,-526.5,0.00023013,9]
[334174735,1722808241531,-500.0,0.00023013,9]
[334174737,1722808241541,-400.0,0.00023013,9]
[334174739,1722808241551,-1072.25,0.00023013,9]
[334174741,1722808241560,-500.0,0.00023013,9]
[334174743,1722808241569,-500.0,0.00023013,9]
[334174745,1722808241579,-500.0,0.00023013,9]
[334174746,1722808241588,-815.73,0.00023013,9]
[334174748,1722808241597,-500.0,0.00023013,9]
[334174750,1722808241606,-500.0,0.00023013,9]
[334174752,1722808241616,-500.0,0.00023013,9]
[334174754,1722808241625,-500.0,0.00023013,9]
[334174756,1722808241635,-500.0,0.00023013,9]
[334174758,1722808241644,-853.4,0.00023013,9]
[334174760,1722808241654,-808.19,0.00023013,9]
[334174762,1722808241663,-644.42,0.00023013,9]
[334174764,1722808241672,-500.0,0.00023013,9]
[334174766,1722808241681,-1067.79,0.00023013,9]
[334174768,1722808241691,-716.38,0.00023013,9]
[334174770,1722808241700,-500.0,0.00023013,9]
[334174772,1722808241709,-570.47,0.00023013,9]
[334174774,1722808241718,-500.0,0.00023013,9]
[334174776,1722808241727,-549.0,0.00023013,9]
[334174778,1722808241737,-500.0,0.00023013,9]
[334174780,1722808241746,-547.03,0.00023013,9]
[334174782,1722808241755,-681.41,0.00023013,9]
[334174784,1722808241764,-500.0,0.00023013,9]
[334174785,1722808241774,-696.34,0.00023013,9]
[334174787,1722808241783,-500.0,0.00023013,9]
[334174789,1722808241793,-542.51,0.00023013,9]
[334174791,1722808241802,-500.0,0.00023013,9]
[334174793,1722808241812,-500.0,0.00023013,9]
[334174795,1722808241821,-500.0,0.00023013,9]
[334174797,1722808241830,-500.0,0.00023013,9]
[334174799,1722808241840,-753.34,0.00023013,9]
[334174801,1722808241849,-500.0,0.00023013,9]
[334174803,1722808241859,-500.0,0.00023013,9]
[334174805,1722808241868,-500.0,0.00023013,9]
[334174807,1722808241878,-193.27104622,0.00023013,9]
[334174809,1722808241887,-500.0,0.00023013,9]
[334174811,1722808241896,-536.44,0.00023013,9]
[334174813,1722808241906,-500.0,0.00023013,9]
[334174815,1722808241915,-500.0,0.00023013,9]
[334174817,1722808241924,-500.0,0.00023013,9]
[334174819,1722808241934,-500.0,0.00023013,9]
[334174820,1722808241944,-500.0,0.00023013,9]
[334174822,1722808241954,-974.12,0.00023013,9]
[334174824,1722808241963,-500.0,0.00023013,9]
[334174826,1722808241974,-1031.2,0.00023013,9]
[334174828,1722808241983,-500.0,0.00023013,9]
[334174830,1722808241992,-514.59,0.00023013,9]
[334174832,1722808242001,-500.0,0.00023013,9]
[334174834,1722808242011,-500.0,0.00023013,9]
[334174836,1722808242020,-500.0,0.00023013,9]
[334174838,1722808242029,-500.0,0.00023013,9]
[334174840,1722808242038,-1255.69,0.00023013,9]
[334174842,1722808242048,-500.0,0.00023013,9]
[334174844,1722808242058,-293.53,0.00023013,9]
[334174845,1722808242067,-500.0,0.00023013,9]
[334174846,1722808242077,-553.83,0.00023013,9]
[334174847,1722808242087,-1283.99,0.00023013,9]
[334174848,1722808242098,-500.0,0.00023013,9]
[334174849,1722808242108,-719.81,0.00023013,9]
[334174850,1722808242119,-500.0,0.00023013,9]
[334174851,1722808242128,-500.0,0.00023013,9]
[334174852,1722808242136,-500.0,0.00023013,9]
[334174853,1722808242145,-500.0,0.00023013,9]
[334174854,1722808242156,-855.21,0.00023013,9]
[334174855,1722808242166,-500.0,0.00023013,9]
[334174857,1722808242176,-785.87,0.00023013,9]
[334174858,1722808242186,-500.0,0.00023013,9]
[334174860,1722808242195,-500.0,0.00023013,9]
[334174862,1722808242205,-536.81,0.00023013,9]
[334174864,1722808242215,-500.0,0.00023013,9]
[334174866,1722808242224,-500.0,0.00023013,9]
[334174868,1722808242234,-816.29,0.00023013,9]
[334174870,1722808242243,-500.0,0.00023013,9]
[334174872,1722808242252,-500.0,0.00023013,9]